bitfinex/quotes_SOLUSD_20240621
["timestamp","ask_amount","ask_price","bid_price","bid_amount"]
[1718979583727,6.0626,131.96,131.9,6.0647]
[1718979583867,0.17,132.0,131.85,115.837]
[1718979584070,6.6633,132.01,131.93,6.0637]
[1718979584278,15.1523,132.0,131.92,6.064]
[1718979584477,6.0617,131.98,131.92,6.064]
[1718979584790,6.4933,132.01,131.87,130.3318]
[1718979585093,6.0624,131.96,131.91,6.0646]
[1718979585480,6.4933,132.01,131.87,15.1663]
[1718979585683,65.17,132.0,131.85,115.837]
[1718979585981,6.0631,131.95,131.89,6.0653]
[1718979586173,6.0626,131.96,131.85,115.837]
[1718979586366,6.4933,132.01,131.94,6.0632]
[1718979586584,6.0613,131.99,131.93,6.0636]
[1718979586996,6.0616,131.98,131.93,6.0636]
[1718979587798,6.4933,132.01,131.89,15.1641]
[1718979588007,6.0619,131.98,131.92,6.0638]
[1718979588299,6.0619,131.98,131.93,6.0637]
[1718979588470,6.062,131.97,131.92,6.064]
[1718979588668,6.0625,131.96,131.91,6.0645]
[1718979588897,6.0622,131.97,131.89,15.1641]
[1718979589200,6.0624,131.96,131.91,6.0644]
[1718979589392,15.1524,132.0,131.92,6.0641]
[1718979590090,15.1524,132.0,131.91,6.0646]
[1718979590398,6.0622,131.97,131.91,6.0646]
[1718979590569,15.1524,132.0,131.92,6.0641]
[1718979591076,13.33527343,132.08,131.92,22.91]
[1718979591275,20.0,132.07,131.92,100.0]
[1718979591582,6.0599,132.02,131.93,15.1592]
[1718979591797,6.0593,132.03,131.98,6.0614]
[1718979591976,6.0604,132.01,131.96,6.0621]
[1718979592177,15.148,132.03,131.92,15.1605]
[1718979592383,15.148,132.03,131.94,6.063]
[1718979592580,6.061,132.0,131.95,6.0626]
[1718979592781,15.1504,132.01,131.9,45.4876]
[1718979593085,6.0611,131.99,131.94,6.0631]
[1718979593402,6.0607,132.0,131.95,6.0625]
[1718979593585,6.0611,131.99,131.94,6.0632]
[1718979593785,6.0608,132.0,131.95,6.0627]
[1718979594103,6.0608,132.0,131.94,6.0631]
[1718979594303,16.0971,132.01,131.94,6.0631]
[1718979594304,6.0611,131.99,131.94,6.0631]
[1718979595012,6.0607,132.0,131.95,6.0628]
[1718979595308,16.0971,132.01,131.92,15.1598]
[1718979595493,16.0971,132.01,131.9,130.3248]
[1718979595681,6.2475,132.0,131.86,7.92334458]
[1718979596005,15.153,131.99,131.86,100.0]
[1718979596219,15.155,131.97,131.85,22.1658]
[1718979596392,6.0631,131.95,131.9,6.0651]
[1718979596599,6.0633,131.94,131.89,6.0653]
[1718979596904,6.0626,131.96,131.87,15.1656]
[1718979597207,6.0621,131.97,131.86,100.0]
[1718979597411,6.2475,132.0,131.89,100.0]
[1718979597574,6.0612,131.99,131.94,6.0631]
[1718979597773,12.3081,132.0,131.95,6.0628]
[1718979597998,6.0612,131.99,131.94,6.0631]
[1718979598205,6.2475,132.0,131.93,6.0635]
[1718979598406,6.2475,132.0,131.92,6.0641]
[1718979598407,6.0619,131.98,131.92,6.0641]
[1718979598592,6.0619,131.98,131.93,6.0637]
[1718979598779,6.2475,132.0,131.87,122.91]
[1718979598974,6.0625,131.96,131.88,15.1651]
[1718979599204,6.0625,131.96,131.91,6.0646]
[1718979599404,6.0625,131.96,131.91,6.0644]
[1718979599612,6.0623,131.97,131.91,6.0644]
[1718979599786,6.0624,131.96,131.91,6.0644]
[1718979599981,15.1527,131.99,131.92,6.0642]
[1718979599982,6.062,131.97,131.92,6.0642]
[1718979600307,15.1527,131.99,131.88,15.1651]
[1718979600481,6.0628,131.96,131.91,6.0645]
[1718979600681,6.0628,131.96,131.9,6.0649]
[1718979600979,6.0628,131.96,131.91,6.0645]
[1718979601180,30.3058,131.99,131.85,67.6702]
[1718979601403,45.34,131.98,131.85,15.837]
[1718979601708,6.0635,131.94,131.89,6.0656]
[1718979602303,6.0635,131.94,131.88,6.0659]
[1718979602547,6.0624,131.97,131.88,15.1648]
[1718979602703,21.4,132.0,131.91,15.161]
[1718979602704,12.3083,132.0,131.91,15.161]
[1718979602904,6.0612,131.99,131.91,15.161]
[1718979603123,6.2475,132.0,131.95,6.0627]
[1718979603337,6.2475,132.0,131.93,15.1585]
[1718979603507,6.059,132.04,131.99,6.0609]
[1718979603709,6.0599,132.02,131.95,15.1562]
[1718979603937,21.5274,132.06,131.91,30.3231]
[1718979604111,15.1493,132.02,131.93,6.0635]
[1718979604316,6.0612,131.99,131.94,6.0632]
[1718979604534,30.292,132.05,131.9,100.0]
[1718979604742,30.292,132.05,131.92,15.1603]
[1718979604916,30.292,132.05,131.95,6.0626]
[1718979604917,15.1489,132.03,131.95,6.0626]
[1718979605117,6.0607,132.0,131.95,6.0626]
[1718979605420,6.06,132.02,131.96,6.0622]
[1718979605734,21.5274,132.06,131.96,100.0]
[1718979605916,21.5274,132.06,131.98,100.0]
[1718979606125,6.88426463,132.16,131.93,16.4293]
[1718979606126,22.3547,132.11,132.05,6.058]
[1718979606332,22.3547,132.11,131.99,45.0]
[1718979606513,6.0572,132.08,131.99,60.1525]
[1718979606712,6.0566,132.09,132.0,100.17]
[1718979606942,22.3547,132.11,132.04,6.0584]
[1718979607434,28.4104,132.11,132.05,6.0582]
[1718979607634,6.0561,132.1,132.05,6.0582]
[1718979607827,6.0565,132.09,132.03,6.059]
[1718979608027,6.0569,132.08,132.03,6.059]
[1718979608324,6.0562,132.1,132.04,6.0586]
[1718979608522,22.3547,132.11,132.05,6.0581]
[1718979608723,22.3547,132.11,132.01,15.1493]
[1718979608918,6.0583,132.05,131.95,170.0846]
[1718979609115,6.0583,132.05,131.93,16.4293]
[1718979609116,22.3547,132.11,131.97,6.0619]
[1718979609313,6.0599,132.02,131.94,115.1576]
[1718979609523,15.1412,132.09,131.96,15.156]
[1718979609839,6.0592,132.03,131.94,115.1581]
[1718979610038,65.17,132.08,131.97,6.0616]
[1718979610039,15.1458,132.05,131.97,6.0616]
[1718979610641,6.0594,132.03,131.97,6.0616]
[1718979610819,6.0608,132.0,131.91,21.4558]
[1718979611022,6.0599,132.02,131.96,6.0621]
[1718979611422,6.0599,132.02,131.97,6.0619]
[1718979611755,6.0602,132.01,131.96,6.0622]
[1718979612035,6.3831,132.03,131.97,6.0619]
[1718979612239,16.3051,132.11,132.0,6.0603]
[1718979612240,6.0584,132.05,132.0,6.0603]
[1718979612445,21.6399,132.09,131.98,15.1537]
[1718979612623,21.6399,132.09,131.95,122.77]
[1718979612944,6.4979,132.09,132.0,15.1514]
[1718979613126,6.4979,132.09,132.03,6.0591]
[1718979613127,6.0569,132.08,132.03,6.0591]
[1718979613326,6.4979,132.09,132.01,15.1493]
[1718979613732,6.4979,132.09,132.04,6.0584]
[1718979614126,6.4979,132.09,132.03,6.0591]
[1718979614332,6.0569,132.08,132.03,6.0591]
[1718979614635,6.4979,132.09,132.04,6.0587]
[1718979614636,12.5545,132.09,132.04,6.0587]
[1718979614824,12.5545,132.09,132.03,6.059]
[1718979615147,12.5544,132.09,132.04,6.0587]
[1718979615450,6.4979,132.09,132.03,6.059]
[1718979615745,6.4979,132.09,131.99,16.3051]
[1718979615746,6.0584,132.05,131.99,16.3051]
[1718979615927,6.0588,132.04,131.99,16.3051]
[1718979616124,15.1444,132.07,131.98,6.0614]
[1718979616447,6.0594,132.03,131.98,6.0614]
[1718979616822,15.1467,132.05,131.94,15.1581]
[1718979617015,6.061,132.0,131.93,22.77]
[1718979617323,6.0603,132.01,131.96,6.0623]
[1718979617526,15.1491,132.03,131.93,22.77]
[1718979617731,6.4339,132.01,131.94,15.1583]
[1718979617944,6.4339,132.01,131.97,6.0616]
[1718979618130,12.4942,132.01,131.96,6.0622]
[1718979618446,6.3205,132.05,131.96,15.156]
[1718979618623,6.0588,132.04,131.99,6.0608]
[1718979618823,6.0594,132.03,131.96,15.156]
[1718979619340,6.0594,132.03,131.98,6.0614]
[1718979619522,6.0589,132.04,131.98,6.0614]
[1718979620016,6.0594,132.03,131.97,6.0617]
[1718979620221,6.3205,132.05,131.96,6.0621]
[1718979620444,6.3205,132.05,131.93,37.9284]
[1718979620641,6.0605,132.01,131.96,6.0623]
[1718979620948,6.0607,132.0,131.95,6.0626]
[1718979621124,6.0602,132.01,131.96,6.0623]
[1718979621330,6.0602,132.01,131.95,6.0626]
[1718979621538,15.1477,132.04,131.93,15.1584]
[1718979621847,6.0609,132.0,131.94,6.0632]
[1718979622046,6.0609,132.0,131.95,6.0627]
[1718979622346,6.3205,132.05,131.96,15.1561]
[1718979622749,6.3205,132.05,131.99,6.061]
[1718979622948,6.059,132.04,131.99,6.061]
[1718979623255,6.3205,132.05,131.99,6.061]
[1718979623560,12.3789,132.05,132.0,6.0602]
[1718979623850,6.0593,132.03,131.96,15.1561]
[1718979624446,6.0598,132.02,131.94,15.1584]
[1718979624647,6.0598,132.02,131.97,6.0617]
[1718979625023,6.0603,132.01,131.92,115.1603]
[1718979625229,6.0602,132.01,131.96,6.0621]
[1718979625428,6.0601,132.01,131.96,6.0621]
[1718979625643,6.06,132.02,131.97,6.0619]
[1718979625842,6.0602,132.01,131.96,6.0622]
[1718979626042,6.0606,132.0,131.95,6.0626]
[1718979626244,6.3205,132.05,131.94,15.1576]
[1718979626733,6.0615,131.98,131.93,6.0636]
[1718979627052,15.1512,132.01,131.94,6.0629]
[1718979627237,6.061,131.99,131.91,15.1607]
[1718979627436,6.0619,131.98,131.9,7.92163205]
[1718979627658,15.1526,131.99,131.9,6.0649]
[1718979627827,15.1526,131.99,131.87,21.2618]
[1718979628031,6.0621,131.97,131.92,6.0641]
[1718979628246,6.0635,131.94,131.88,21.2165]
[1718979628442,6.0626,131.96,131.9,6.0651]
[1718979628655,12.6777,131.97,131.91,6.0647]
[1718979628854,12.6777,131.97,131.86,100.0]
[1718979628855,6.6156,131.97,131.86,100.0]
[1718979629160,6.6156,131.97,131.94,6.0631]
[1718979629462,6.6099,132.01,131.98,6.0615]
[1718979629658,6.0593,132.03,131.94,15.1573]
[1718979629828,6.0593,132.03,131.97,6.0615]
[1718979630254,6.0597,132.02,131.96,6.0622]
[1718979630431,16.0574,132.04,131.92,6.174]
[1718979630756,16.0574,132.04,131.93,145.0]
[1718979630937,6.0593,132.03,131.98,6.0614]
[1718979631132,21.7567,132.05,132.02,6.0596]
[1718979631133,6.6099,132.05,132.02,6.0596]
[1718979631350,6.6099,132.05,131.96,22.77]
[1718979631351,12.6682,132.05,131.99,6.0607]
[1718979631663,6.0587,132.04,131.96,15.1556]
[1718979631843,6.0596,132.03,131.97,6.0617]
[1718979632258,6.0602,132.01,131.92,136.4934]
[1718979632448,15.1401,132.1,131.97,100.0]
[1718979632638,6.0573,132.08,131.98,45.0]
[1718979632955,6.0573,132.08,132.03,6.0591]
[1718979633145,6.0573,132.08,132.02,6.0596]
[1718979633333,6.0575,132.07,132.01,6.0599]
[1718979633964,6.0574,132.07,131.99,15.1515]
[1718979634164,6.0571,132.08,132.02,6.0594]
[1718979634337,6.0571,132.08,132.03,6.0591]
[1718979634849,6.0537,132.15,132.1,6.0556]
[1718979635043,6.0535,132.16,132.1,6.0559]
[1718979635246,21.9651,132.22,132.12,6.0548]
[1718979635247,6.0525,132.18,132.12,6.0548]
[1718979635449,15.1287,132.2,132.08,115.1417]
[1718979635652,6.0529,132.17,132.11,6.0552]
[1718979635859,6.0529,132.17,132.12,6.0549]
[1718979636168,6.0525,132.18,132.12,6.0549]
[1718979636541,15.1308,132.19,132.08,15.1417]
[1718979636746,6.0534,132.16,132.1,6.0557]
[1718979636962,6.0538,132.15,132.1,6.0557]
[1718979637160,6.0538,132.15,132.08,15.1417]
[1718979637161,6.0538,132.15,132.09,6.0563]
[1718979637359,6.0531,132.17,132.08,15.1422]
[1718979637566,6.0531,132.17,132.11,6.0554]
[1718979637763,15.1276,132.21,132.1,121.1553]
[1718979638059,22.3089,132.26,132.2,6.0513]
[1718979638248,12.5719,132.26,132.21,6.0508]
[1718979638445,12.5719,132.26,132.2,6.0512]
[1718979639240,6.523,132.26,132.21,6.0506]
[1718979639441,6.0475,132.29,132.23,6.05]
[1718979639761,6.9049225,132.3,132.25,6.0489]
[1718979639966,6.9050225,132.3,132.24,6.0494]
[1718979640438,6.9050225,132.3,132.25,6.0491]
[1718979640639,6.0473,132.29,132.21,15.1263]
[1718979640838,6.0473,132.29,132.23,6.05]
[1718979641065,0.8580225,132.3,132.21,115.1263]
[1718979641066,6.9050225,132.3,132.21,115.1263]
[1718979641243,0.8580225,132.3,132.25,6.0491]
[1718979641566,6.9049225,132.3,132.24,6.0494]
[1718979641963,6.9049225,132.3,132.23,6.0499]
[1718979641964,6.0475,132.29,132.23,6.0499]
[1718979642160,0.8580225,132.3,132.21,115.1263]
[1718979642546,0.8580225,132.3,132.26,6.0482]
[1718979642854,0.8580225,132.3,132.28,6.0477]
[1718979643036,0.8580225,132.3,132.27,6.048]
[1718979643237,0.8580225,132.3,132.28,6.0476]
[1718979643462,0.8580225,132.3,132.29,6.0473]
[1718979643838,0.8580225,132.3,132.27,6.0479]
[1718979644246,0.8580225,132.3,132.22,45.3765]
[1718979644451,0.8580225,132.3,132.23,65.0]
[1718979644660,0.8580225,132.3,132.25,6.0489]
[1718979644847,0.8580225,132.3,132.24,6.0495]
[1718979644848,6.9051225,132.3,132.24,6.0495]
[1718979645046,0.8580225,132.3,132.23,15.1241]
[1718979645545,0.8580225,132.3,132.26,6.0484]
[1718979645952,0.8580225,132.3,132.27,6.0481]
[1718979646279,0.8580225,132.3,132.26,6.0486]
[1718979646570,0.8580225,132.3,132.27,6.0481]
[1718979646769,0.8580225,132.3,132.23,15.1241]
[1718979647073,0.8580225,132.3,132.25,6.0489]
[1718979647274,6.9048225,132.3,132.25,6.0489]
[1718979647474,0.8580225,132.3,132.26,6.0486]
[1718979647651,0.8580225,132.3,132.27,6.0481]
[1718979647852,0.8580225,132.3,132.21,30.2536]
[1718979648063,0.8580225,132.3,132.21,130.2536]
[1718979648267,0.8580225,132.3,132.22,15.1262]
[1718979648478,6.0476,132.29,132.24,6.0495]
[1718979648664,6.0478,132.28,132.23,6.0498]
[1718979648846,6.0474,132.29,132.23,6.0498]
[1718979649047,0.8580225,132.3,132.22,15.1262]
[1718979649247,0.8580225,132.3,132.26,6.0485]
[1718979649455,0.8580225,132.3,132.23,15.1241]
[1718979649666,6.9048225,132.3,132.25,6.0491]
[1718979649875,6.9048225,132.3,132.2,136.5845]
[1718979649876,6.0473,132.29,132.24,6.0493]
[1718979650066,0.8580225,132.3,132.25,6.0491]
[1718979650067,6.9050225,132.3,132.25,6.0491]
[1718979650268,0.8580225,132.3,132.25,6.0491]
[1718979650573,15.9752225,132.3,132.19,15.2624]
[1718979650775,0.8580225,132.3,132.24,6.0493]
[1718979651078,6.0481,132.28,132.19,30.3912]
[1718979651368,0.8580225,132.3,132.19,15.1288]
[1718979651369,6.0483,132.27,132.19,15.1288]
[1718979651775,6.0488,132.26,132.17,15.1317]
[1718979652071,6.0484,132.27,132.22,6.0505]
[1718979652271,6.0478,132.28,132.18,100.0]
[1718979652477,6.048,132.28,132.23,6.0498]
[1718979652677,6.048,132.28,132.23,6.0499]
[1718979653172,6.048,132.28,132.22,6.0503]
[1718979653381,6.9050225,132.3,132.24,6.0492]
[1718979653670,6.0474,132.29,132.24,6.0492]
[1718979653877,6.0474,132.29,132.23,6.0498]
[1718979654086,6.0474,132.29,132.24,6.0495]
[1718979654765,6.0478,132.28,132.23,6.0498]
[1718979654958,6.0475,132.29,132.23,6.0498]
[1718979655284,6.0478,132.28,132.23,6.0498]
[1718979655650,6.0482,132.27,132.22,6.0504]
[1718979655855,15.9759225,132.3,132.19,15.1296]
[1718979656068,6.0481,132.28,132.23,6.0499]
[1718979656265,0.8580225,132.3,132.21,6.0506]
[1718979656470,6.0484,132.27,132.22,6.0504]
[1718979656669,6.0487,132.26,132.21,6.0508]
[1718979657177,6.0484,132.27,132.21,6.0508]
[1718979657475,6.0476,132.29,132.24,6.0495]
[1718979657682,0.8580225,132.3,132.25,6.0489]
[1718979657861,6.0473,132.29,132.24,6.0494]
[1718979658056,6.9051225,132.3,132.25,6.0491]
[1718979658250,6.9051225,132.3,132.21,15.1271]
[1718979658569,0.8580225,132.3,132.21,15.1271]
[1718979658810,6.0477,132.29,132.21,15.1271]
[1718979658961,15.9751225,132.3,132.19,15.1294]
[1718979659161,6.0544,132.29,132.2,15.1277]
[1718979659366,6.0482,132.27,132.22,6.0503]
[1718979659874,6.0478,132.28,132.23,6.0498]
[1718979660055,12.1019,132.29,132.23,6.0498]
[1718979660255,6.0477,132.28,132.23,6.0498]
[1718979660455,6.0483,132.27,132.22,6.0503]
[1718979660673,12.1021,132.29,132.17,100.0]
[1718979660978,6.0544,132.29,132.25,6.049]
[1718979661364,6.0544,132.29,132.24,15.124]
[1718979661685,6.0544,132.29,132.25,6.049]
[1718979661882,6.0544,132.29,132.26,6.0486]
[1718979662575,12.1017,132.29,132.24,6.0494]
[1718979662981,6.0544,132.29,132.25,6.0491]
[1718979663291,6.0544,132.29,132.23,15.1243]
[1718979663465,0.8580225,132.3,132.28,6.0477]
[1718979663969,0.8580225,132.3,132.25,15.122]
[1718979664280,0.8580225,132.3,132.29,6.0473]
[1718979664488,0.8580225,132.3,132.22,15.1255]
[1718979664789,6.9049225,132.3,132.25,6.0489]
[1718979664955,0.8580225,132.3,132.2,15.1283]
[1718979665285,6.0485,132.27,132.22,6.0504]
[1718979665490,0.8580225,132.3,132.22,6.0502]
[1718979665659,0.17,132.29,132.23,6.05]
[1718979665975,6.0475,132.29,132.2,15.1283]
[1718979666156,0.8580225,132.3,132.21,100.0]
[1718979666367,0.8580225,132.3,132.29,6.0473]
[1718979667680,0.8580225,132.3,132.25,15.122]
[1718979668092,0.8580225,132.3,132.27,6.048]
[1718979668264,0.8580225,132.3,132.26,15.1209]
[1718979668589,0.8580225,132.3,132.28,6.0474]
[1718979668771,0.8580225,132.3,132.29,6.0473]
[1718979670953,0.8580225,132.3,132.29,6.56877157]
[1718979672159,2.25e-05,132.3,132.29,26.56877157]
[1718979672379,2.25e-05,132.3,132.29,94.50877157]
[1718979672582,6.4585,132.41,132.31,100.0]
[1718979672794,6.4585,132.41,132.36,6.0437]
[1718979673282,6.4585,132.41,132.35,6.0445]
[1718979673478,6.4585,132.41,132.34,6.0448]
[1718979673689,21.5631,132.41,132.33,6.0454]
[1718979673861,6.4585,132.41,132.29,100.0]
[1718979674069,6.4585,132.41,132.37,6.0433]
[1718979674383,0.8580225,132.43,132.4,6.0422]
[1718979674586,0.8580225,132.43,132.36,22.8226]
[1718979674887,0.8580225,132.43,132.42,6.0413]
[1718979676485,2.25e-05,132.43,132.42,48.9813]
[1718979676686,12.112,132.54,132.42,48.9813]
[1718979676687,12.112,132.54,132.48,6.0385]
[1718979676891,6.0372,132.51,132.5,11.05653535]
[1718979677073,6.0376,132.51,132.49,11.06018914]
[1718979677278,6.0377,132.5,132.49,11.06018914]
[1718979677464,6.0761,132.54,132.39,10.89090061]
[1718979677676,6.0761,132.54,132.36,153.0423]
[1718979677677,6.0399,132.46,132.4,6.0419]
[1718979677999,6.0761,132.54,132.41,10.89246224]
[1718979678167,6.0761,132.54,132.36,22.8226]
[1718979678374,6.0761,132.54,132.37,10.89326947]
[1718979678375,6.0407,132.44,132.37,10.89326947]
[1718979678589,6.0417,132.42,132.36,6.044]
[1718979678791,12.3801,132.43,132.37,6.0436]
[1718979678993,12.3801,132.43,132.35,15.1113]
[1718979679195,6.0414,132.42,132.35,15.1113]
[1718979679578,22.0153,132.47,132.39,15.1065]
[1718979680096,22.0153,132.47,132.35,15.1103]
[1718979680097,37.1141,132.47,132.35,15.1103]
[1718979680395,6.27,132.47,132.4,15.1047]
[1718979680579,6.27,132.49,132.35,33.61]
[1718979680790,6.27,132.49,132.39,6.0427]
[1718979680984,6.27,132.49,132.35,15.1105]
[1718979680985,6.0412,132.43,132.37,6.0433]
[1718979681324,36.4627,132.49,132.39,6.0424]
[1718979681506,15.0967,132.48,132.39,6.0424]
[1718979681806,36.4627,132.49,132.35,100.0]
[1718979681807,6.27,132.49,132.35,100.0]
[1718979682107,6.27,132.49,132.4,15.1047]
[1718979682395,6.27,132.49,132.4,15.1054]
[1718979682600,6.0386,132.48,132.43,6.0408]
[1718979682798,6.0391,132.47,132.42,6.0412]
[1718979682982,6.0391,132.47,132.35,160.469549]
[1718979683185,6.0412,132.43,132.37,6.0434]
[1718979683485,6.27,132.49,132.33,15.1137]
[1718979683684,15.4818,132.43,132.36,15.1101]
[1718979683888,15.4818,132.43,132.38,6.0428]
[1718979684392,6.6656,132.42,132.28,21.857]
[1718979684599,0.17,132.41,132.32,6.0455]
[1718979684796,60.4456,132.41,132.32,6.0455]
[1718979685092,6.0443,132.36,132.31,6.0463]
[1718979685292,15.1069,132.39,132.31,6.0463]
[1718979685293,6.0438,132.37,132.31,6.0463]
[1718979685495,6.2901,132.33,132.23,100.0]
[1718979685679,12.3357,132.33,132.28,6.0476]
[1718979685879,6.046,132.32,132.26,6.0482]
[1718979686277,12.3356,132.33,132.27,6.0481]
[1718979686485,12.3356,132.33,132.27,6.048]
[1718979686486,6.2901,132.33,132.27,6.048]
[1718979686705,12.3356,132.33,132.27,6.048]
[1718979686903,6.2901,132.33,132.26,6.0485]
[1718979687385,6.2901,132.33,132.25,6.049]
[1718979687581,6.2901,132.33,132.29,6.0471]
[1718979687805,6.2901,132.33,132.26,15.1216]
[1718979688107,6.2901,132.33,132.28,6.0474]
[1718979688308,12.3356,132.33,132.28,6.0474]
[1718979688484,6.2901,132.33,132.28,6.0474]
[1718979688827,6.2901,132.33,132.22,15.035]
[1718979689103,0.34,132.32,132.22,6.0503]
[1718979689281,0.34,132.32,132.23,6.0497]
[1718979689282,15.117,132.31,132.23,6.0497]
[1718979689483,15.117,132.31,132.19,15.035]
[1718979689484,6.0466,132.31,132.26,6.0486]
[1718979689781,45.34,132.32,132.21,6.0507]
[1718979689782,6.0485,132.27,132.21,6.0507]
[1718979690302,6.0486,132.27,132.21,6.0506]
[1718979690603,6.0486,132.27,132.22,6.0503]
[1718979690808,6.0486,132.27,132.19,30.1641]
[1718979690809,6.0479,132.28,132.19,30.1641]
[1718979690981,6.046,132.32,132.19,168.0627]
[1718979691188,6.2901,132.33,132.28,6.0473]
[1718979691410,6.2901,132.33,132.28,6.0474]
[1718979691781,6.2901,132.33,132.23,15.1249]
[1718979692008,6.2901,132.33,132.19,45.2927]
[1718979692224,15.1172,132.3,132.18,15.1299]
[1718979692514,6.2901,132.33,132.27,6.0481]
[1718979692683,6.0462,132.32,132.26,6.0485]
[1718979692881,6.0462,132.32,132.27,6.048]
[1718979693081,6.2901,132.33,132.27,6.0479]
[1718979693288,6.2901,132.33,132.24,15.1231]
[1718979693510,6.2901,132.33,132.21,153.0234]
[1718979693689,6.2901,132.33,132.25,15.1219]
[1718979693885,6.2901,132.33,132.23,15.125]
[1718979694190,6.2901,132.33,132.21,15.1271]
[1718979694502,6.0491,132.26,132.21,6.0506]
[1718979694705,6.2901,132.33,132.22,6.0504]
[1718979694706,6.0484,132.27,132.22,6.0504]
[1718979695012,30.219,132.37,132.15,116.2273]
[1718979695013,15.035,132.38,132.16,16.2273]
[1718979695204,15.035,132.38,132.3,30.2323]
[1718979695513,6.0415,132.41,132.3,100.0]
[1718979695683,6.0415,132.41,132.36,6.044]
[1718979695882,6.0415,132.41,132.35,6.0444]
[1718979696184,6.0415,132.41,132.34,15.1125]
[1718979696508,22.5582,132.48,132.33,100.0]
[1718979696713,22.5582,132.48,132.41,6.0413]
[1718979696714,6.0392,132.47,132.41,6.0413]
[1718979696893,22.5582,132.48,132.35,16.3203]
[1718979697091,6.0426,132.4,132.35,16.3203]
[1718979697418,6.0418,132.41,132.35,6.0444]
[1718979697789,15.1018,132.44,132.33,22.3655]
[1718979697790,6.0429,132.39,132.33,22.3655]
[1718979697989,6.0423,132.4,132.34,6.0449]
[1718979698194,0.17,132.41,132.29,30.1963]
[1718979698514,6.0428,132.39,132.33,6.045]
[1718979698813,6.0423,132.4,132.34,6.0449]
[1718979699017,0.17,132.41,132.3,15.1169]
[1718979699224,0.17,132.41,132.28,0.17]
[1718979699225,6.0437,132.37,132.31,6.0462]
[1718979699384,6.0442,132.36,132.3,6.0467]
[1718979700011,6.0436,132.38,132.27,15.1196]
[1718979700196,15.8378,132.39,132.29,15.1177]
[1718979700407,0.17,132.38,132.28,20.0]
[1718979700789,6.0441,132.36,132.28,35.1191]
[1718979701034,6.0441,132.36,132.3,6.0465]
[1718979701524,6.0455,132.33,132.25,15.1219]
[1718979701813,6.0446,132.35,132.25,15.1219]
[1718979701988,6.0439,132.37,132.31,6.0463]
[1718979702187,0.17,132.38,132.27,30.9576]
[1718979702421,6.0444,132.36,132.27,15.1198]
[1718979702619,6.0442,132.36,132.3,6.0466]
[1718979702992,0.34,132.38,132.29,6.0471]
[1718979703214,60.4491,132.38,132.29,6.0471]
[1718979703717,6.0446,132.35,132.3,6.0468]
[1718979703916,6.0446,132.35,132.29,6.0471]
[1718979704123,6.0452,132.34,132.29,6.0471]
[1718979704300,6.0447,132.35,132.29,6.0471]
[1718979704490,6.0456,132.33,132.24,15.1229]
[1718979704692,6.0469,132.3,132.21,15.1263]
[1718979704891,6.2507,132.31,132.26,6.0485]
[1718979705109,6.2507,132.31,132.19,130.2582]
[1718979705310,6.2507,132.31,132.27,6.0481]
[1718979705507,6.2507,132.31,132.27,6.048]
[1718979705725,6.2507,132.31,132.28,6.0477]
[1718979705893,6.2507,132.31,132.29,6.0472]
[1718979706415,6.2507,132.31,132.28,6.0476]
[1718979706614,6.0452,132.34,132.28,6.0476]
[1718979706807,6.0584,132.35,132.23,100.0]
[1718979706995,6.0584,132.35,132.22,15.1104]